Cogmind - Beta 11.1 --- EXPLORER MODE // 2022.05.24 @ 22:33:17 Player: Grimbling Result: Self-destructed Performance ------------- Evolutions (3) 1500 Regions Visited (6) 1200 Robots Destroyed (62) 310 Value Destroyed (1567) 1567 Prototype IDs (3) 60 Alien Tech Used (0) 0 Bonus (142) 142 TOTAL SCORE: 4779 Bonus ------- High Alert Combat Kills 11 Follower Combat Kills 131 Cogmind --------- Core Integrity 700/700 Matter 290/300 Energy 265/265 System Corruption 0% Temperature Cool (0) Movement Rolling (80) Location -7/Factory Parts ------- > --- POWER (1) -------- Improved Ion Engine > --- PROPULSION (4) --- Wheel Wheel Wheel Wheel > --- UTILITY (6) ------ Improved Heat Sink Improved Heat Sink Medium Storage Unit Improved Targeting Computer Core Analyzer > --- WEAPON (3) ------- Particle Gun Field Laser > --- INVENTORY (10) --- Ion Engine Wheel Heat Sink Heat Sink Heat Sink Improved Heat Sink Large Storage Unit Signal Interpreter ECM Suite Peak State ------------ > --- POWER ------------ Improved Ion Engine > --- PROPULSION ------- Wheel Wheel Wheel Wheel > --- UTILITY ---------- Improved Heat Sink Improved Heat Sink Medium Storage Unit Improved Targeting Computer Core Analyzer > --- WEAPON ----------- Particle Gun Field Laser > --- INVENTORY -------- Ion Engine Wheel Heat Sink Heat Sink Heat Sink Improved Heat Sink Large Storage Unit Signal Interpreter ECM Suite [Rating: 25] Favorites ----------- Power Ion Engine Engine Ion Engine Propulsion Compact Wheel Leg Aluminum Leg Wheel Compact Wheel Utility Medium Storage Unit Device Heat Sink Storage Medium Storage Unit Processor Improved Targeting Computer Protection Light Armor Plating Weapon Field Laser Energy Gun Field Laser Ballistic Gun Shotgun Build | -11 -10 -10 -9 -9 -8 -7 ------- Run | Scr Mat Min Mat Min Mat Fac Slots Evolved 7 | . 1 . 2 . 2 2 Power . | . . . . . . . Propulsion 2 | . . . 1 . 1 . Utility 4 | . 1 . 1 . 1 1 Weapon 1 | . . . . . . 1 Parts Attached 39 | 2 5 2 7 7 15 1 Power 3 | . . . 1 1 1 . Engine 3 | . . . 1 1 1 . Core . | . . . . . . . Reactor . | . . . . . . . Propulsion 14 | . 2 . 1 5 6 . Treads . | . . . . . . . Leg . | . . . . . . . Wheel 14 | . 2 . 1 5 6 . Hover . | . . . . . . . Flight . | . . . . . . . Utility 15 | 1 1 2 3 1 6 1 Device 8 | . . 1 2 . 4 1 Storage . | . . . . . . . Processor 2 | . 1 . . . 1 . Hackware . | . . . . . . . Protection 5 | 1 . 1 1 1 1 . Artifact . | . . . . . . . Weapon 7 | 1 2 . 2 . 2 . Energy Gun 5 | 1 . . 2 . 2 . Energy Cannon . | . . . . . . . Ballistic Gun 2 | . 2 . . . . . Ballistic Cannon . | . . . . . . . Launcher . | . . . . . . . Special Weapon . | . . . . . . . Impact Weapon . | . . . . . . . Slashing Weapon . | . . . . . . . Piercing Weapon . | . . . . . . . Special Melee Weapon . | . . . . . . . Unidentified Prototypes 1 | . . 1 . . . . Parts Lost 3 | . . . . . 3 . Power 1 | . . . . . 1 . Propulsion . | . . . . . . . Utility 1 | . . . . . 1 . Weapon 1 | . . . . . 1 . Highest Loss Streak 2 | . . . . . 2 . To Critical Strikes . | . . . . . . . Average Slot Usage (%) 93 | . 78 100 88 100 86 85 Engine 10 | . 12 12 10 10 7 7 Wheel 26 | . 18 25 23 30 27 28 Device 6 | . . . 4 10 8 14 Storage 10 | . 12 12 10 10 8 7 Processor 9 | . 2 12 10 10 9 14 Protection 9 | . 12 11 10 10 6 . Energy Gun 13 | . 10 . 19 20 15 14 Ballistic Gun 5 | . 4 25 . . . . Naked Turns . | . . . . . . . Heaviest Build 30 | 20 24 25 28 27 30 25 Greatest Support 58 | 20 26 26 42 48 58 40 Greatest Overweight (x) 1 | . 1 . 1 . . . Average Overweight (x) . | . . . . . . . Largest Inventory Capacity 10 | 10 10 10 10 10 10 10 Average Capacity 10 | 10 10 10 10 10 10 10 Most Carried 10 | 10 7 8 9 10 10 9 Average Carried 8 | 7 6 7 7 8 9 9 Final Capacity 10 | 10 10 10 10 10 10 10 Final Carried 10 | 6 7 8 8 10 10 9 Class Distribution -------------------- 53% | Hacker-Mutant 46% | Scavenger-Mutant Dominant Class ---------------- Hacker-Mutant | -10/Materials Hacker-Mutant | -10/Mines Hacker-Mutant | -9/Materials Scavenger-Mutant | -9/Mines Scavenger-Mutant | -8/Materials Scavenger-Mutant | -7/Factory Resources | -11 -10 -10 -9 -9 -8 -7 ----------- Run | Scr Mat Min Mat Min Mat Fac Matter Collected 610 | 200 20 110 60 80 140 . Remotely . | . . . . . . . Salvage Created 2517 | . . 91 544 341 1541 . Parts 122 | . . 11 36 22 53 . Haulers Intercepted 2 | . . . 1 . 1 . Recyclers Shooed 2 | . . . 1 . 1 . Parts Field Recycled . | . . . . . . . Retrieved Matter . | . . . . . . . Parts Self-Destructed . | . . . . . . . Prevented . | . . . . . . . Kills | -11 -10 -10 -9 -9 -8 -7 ------- Run | Scr Mat Min Mat Min Mat Fac Combat Hostiles Destroyed 40 | . . 6 9 6 19 . Guns 36 | . . 6 9 5 16 . Classes Destroyed 10 | . . 1 6 1 2 . Worker 9 | . . . . 2 7 . Builder 1 | . . . . . 1 . Hauler 2 | . . . 1 . 1 . Recycler 6 | . . . 1 1 4 . Operator 1 | . . . . . 1 . Watcher 3 | . . . 2 . 1 . Swarmer 11 | . . 6 2 2 1 . Grunt 17 | . . . 4 1 12 . Duelist 5 | . . . 2 1 2 . Sentry 7 | . . . 1 2 4 . Best Kill Streak 12 | . . 2 7 4 12 . Combat Bots Only 6 | . . 2 6 3 5 . Max Kills in Single Turn 2 | . . 2 1 1 2 . Gunslinging 1 | . . 1 . . . . Exploded . | . . . . . . . Melee . | . . . . . . . Uniques/NPCs Destroyed . | . . . . . . . Combat | -11 -10 -10 -9 -9 -8 -7 -------- Run | Scr Mat Min Mat Min Mat Fac Damage Taken 1187 | . . 27 381 95 684 . Core 297 | . . 5 90 10 192 . Absorbed by Shields . | . . . . . . . Core Remaining (%) 84 | 100 . 98 . 75 65 . Volleys Fired 120 | . . 5 22 15 78 . Largest 2 | . . 2 2 2 2 . Hottest 128 | . . 46 126 126 128 . Shots Fired 236 | . . 10 44 30 152 . Gun 236 | . . 10 44 30 152 . Cannon . | . . . . . . . Launcher . | . . . . . . . Special . | . . . . . . . Kinetic 10 | . . 10 . . . . Thermal 226 | . . . 44 30 152 . Explosive . | . . . . . . . Electromagnetic . | . . . . . . . Robot Hit Streak 30 | . . 4 18 16 30 . Robot Miss Streak 4 | . . 4 1 1 2 . Penetration Max . | . . . . . . . Secondary Targets 7 | . . 1 4 . 2 . Max Gunslinging Chain 1 | . . 1 1 . 1 . Shots Hit Robots 183 | . . 5 35 23 120 . Core Hits 84 | . . 6 15 10 53 . Critical Kills . | . . . . . . . Critical Parts Destroyed . | . . . . . . . Critical Strikes 7 | . . . 1 . 6 . Burn 7 | . . . 1 . 6 . Melee Attacks . | . . . . . . . Impact . | . . . . . . . Slashing . | . . . . . . . Piercing . | . . . . . . . Sneak Attacks . | . . . . . . . Combat Hostiles . | . . . . . . . Follow-up Attacks . | . . . . . . . Damage Inflicted 3135 | . . 82 593 395 2065 . Guns 3135 | . . 82 593 395 2065 . Cannons . | . . . . . . . Explosions . | . . . . . . . Melee . | . . . . . . . Ramming . | . . . . . . . Kinetic 82 | . . 82 . . . . Thermal 3053 | . . . 593 395 2065 . Explosive . | . . . . . . . Electromagnetic . | . . . . . . . Impact . | . . . . . . . Slashing . | . . . . . . . Piercing . | . . . . . . . Highest Corruption . | . . . . . . . Average Corruption . | . . . . . . . Corruption Purged . | . . . . . . . Corruption Blocked . | . . . . . . . Overload Shots . | . . . . . . . Overflow Damage . | . . . . . . . Projectiles . | . . . . . . . Explosions . | . . . . . . . Melee . | . . . . . . . Knockbacks . | . . . . . . . Impact . | . . . . . . . Kinetic . | . . . . . . . Secondary . | . . . . . . . Self-Inflicted Damage . | . . . . . . . Shots . | . . . . . . . Rammed . | . . . . . . . Targets Rammed . | . . . . . . . Kicked . | . . . . . . . Crushed . | . . . . . . . Highest Temperature 367 | . . . 367 144 210 . Average Temperature 89 | . . . 170 44 59 . Received Heat Transfer 822 | . . . 174 63 585 . Siege Activations . | . . . . . . . Robots Corrupted . | . . . . . . . Combat Hostiles . | . . . . . . . Parts Fried . | . . . . . . . Impact Corruptions . | . . . . . . . Robots Melted 4 | . . . . 1 3 . Combat Hostiles 4 | . . . . 1 3 . Parts Melted 19 | . . . 3 2 14 . Heat Transferred 7215 | . . . 1369 851 4995 . Parts Sabotaged . | . . . . . . . Parts Stolen . | . . . . . . . Parts Stripped . | . . . . . . . Power Chain Reactions . | . . . . . . . Missiles Intercepted . | . . . . . . . Alert | -11 -10 -10 -9 -9 -8 -7 ------- Run | Scr Mat Min Mat Min Mat Fac Peak Influence 457 | . 9 180 313 195 457 121 Initial 121 | . . . . 86 1 121 Average 99 | . 5 59 152 67 208 121 Maximum Alert Level 2 | . . . 1 . 2 . Low Security (%) 84 | 100 100 100 62 100 48 100 Level 1 12 | . . . 37 . 39 . Level 2 2 | . . . . . 12 . Level 3 . | . . . . . . . Level 4 . | . . . . . . . Level 5 . | . . . . . . . High Security . | . . . . . . . Max Security . | . . . . . . . Squads Dispatched 6 | . . . 2 . 4 . Investigation 3 | . . . 1 . 2 . Extermination . | . . . . . . . Reinforcement 3 | . . . 1 . 2 . Assault . | . . . . . . . Garrison . | . . . . . . . Intercept . | . . . . . . . Searches Triggered . | . . . . . . . Construction Impeded . | . . . . . . . Haulers Reinforced . | . . . . . . . Active Scanning Responses . | . . . . . . . Cargo Convoy Interrupts . | . . . . . . . Stealth | -11 -10 -10 -9 -9 -8 -7 --------- Run | Scr Mat Min Mat Min Mat Fac Distress Signals 7 | . . . 4 . 3 . Communications Jammed . | . . . . . . . Distress Signals . | . . . . . . . Times Spotted 65 | . 1 6 16 9 33 . Peak Tracking Total 8 | . 1 2 8 3 6 . Tactical Retreats 5 | . . . . 1 4 . Traps | -11 -10 -10 -9 -9 -8 -7 ------- Run | Scr Mat Min Mat Min Mat Fac Traps Triggered . | . . . . . . . Indirectly . | . . . . . . . Trap Hack Attempts . | . . . . . . . Triggered . | . . . . . . . Disarmed . | . . . . . . . Reprogrammed 4 | . 4 . . . . . Reused . | . . . . . . . Traps Extracted . | . . . . . . . Installed . | . . . . . . . Triggered . | . . . . . . . Machines | -11 -10 -10 -9 -9 -8 -7 ---------- Run | Scr Mat Min Mat Min Mat Fac Machines Disabled 4 | . . . 1 1 2 . Max in Single Turn 1 | . . . 1 1 1 . Machines Sabotaged . | . . . . . . . Garrisons Compromised . | . . . . . . . Overloaded Fab Kills . | . . . . . . . Hacking | -11 -10 -10 -9 -9 -8 -7 --------- Run | Scr Mat Min Mat Min Mat Fac Machines Accessed 12 | . 4 2 2 . 4 . Terminals 11 | . 4 1 2 . 4 . Fabricators . | . . . . . . . Repair Stations . | . . . . . . . Recycling Units . | . . . . . . . Scanalyzers . | . . . . . . . Garrison Access . | . . . . . . . Total Hacks 31 | . 10 3 5 . 13 . Successful 20 | . 6 3 3 . 8 . Failed 11 | . 4 . 2 . 5 . Catastrophic 1 | . . . 1 . . . Database Lockouts . | . . . . . . . Manual 22 | . 8 2 5 . 7 . Terminals 30 | . 10 2 5 . 13 . Fabricators . | . . . . . . . Repair Stations . | . . . . . . . Recycling Units . | . . . . . . . Scanalyzers . | . . . . . . . Garrison Access . | . . . . . . . Terminal Hacks 13 | . 3 3 1 . 6 . Part Schematic 1 | . . 1 . . . . Prototype ID Bank 1 | . . . . . 1 . Open Door 1 | . . 1 . . . . Level Access Points 2 | . . . . . 2 . Branch Access Points 4 | . 1 . 1 . 2 . Unreport Threat 3 | . 1 1 . . 1 . Reprogram Traps 1 | . 1 . . . . . Fabricator Hacks . | . . . . . . . Repair Station Hacks . | . . . . . . . Recycling Unit Hacks . | . . . . . . . Scanalyzer . | . . . . . . . Garrison Access Hacks . | . . . . . . . Unauthorized Hacks 7 | . 3 . 2 . 2 . Terminals 7 | . 3 . 2 . 2 . Botnet 7 | . 3 . 2 . 2 . Fabricators . | . . . . . . . Repair Stations . | . . . . . . . Recycling Units . | . . . . . . . Scanalyzers . | . . . . . . . Garrison Access . | . . . . . . . Data Cores Recovered 1 | . . . . . 1 . Used . | . . . . . . . Hacking Detections 9 | . 2 1 2 . 4 . Full Trace Events 3 | . . . 1 . 2 . Feedback Events . | . . . . . . . Feedback Blocked . | . . . . . . . Robot Schematics Acquired . | . . . . . . . Robots Built . | . . . . . . . Authchips . | . . . . . . . Time . | . . . . . . . Total Robot Build Rating . | . . . . . . . Part Schematics Acquired 1 | . . 1 . . . . Parts Built . | . . . . . . . Authchips . | . . . . . . . Time . | . . . . . . . Total Part Build Rating . | . . . . . . . Parts Repaired . | . . . . . . . Time . | . . . . . . . Parts Recycled . | . . . . . . . Recycled Matter . | . . . . . . . Retrieved Matter . | . . . . . . . Retrieved Components . | . . . . . . . Parts Scanalyzed . | . . . . . . . Part Schematics Acquired . | . . . . . . . Parts Damaged . | . . . . . . . Bothacking | -11 -10 -10 -9 -9 -8 -7 ------------ Run | Scr Mat Min Mat Min Mat Fac Used RIF Installer . | . . . . . . . Robots Hacked . | . . . . . . . Non-combat . | . . . . . . . Combat . | . . . . . . . Robot Hacks Applied . | . . . . . . . Relay Couplers Released . | . . . . . . . Fabnet Peak Effective % . | . . . . . . . Robots Rewired . | . . . . . . . Allies Hacked . | . . . . . . . Hacks Repelled . | . . . . . . . Allies | -11 -10 -10 -9 -9 -8 -7 -------- Run | Scr Mat Min Mat Min Mat Fac Total Allies 4 | . . . . 4 . . Largest Group 3 | . . . . 3 1 . Highest-Rated Group 40 | . . . . 40 16 . Highest-Rated Ally 31 | . . . . 31 16 . Total Orders . | . . . . . . . Ally Attacks 65 | . . . 26 14 25 . Total Damage 486 | . . . 118 108 260 . Kills 7 | . . . 3 3 1 . Allies Corrupted . | . . . . . . . Allies Melted . | . . . . . . . Intel | -11 -10 -10 -9 -9 -8 -7 ------- Run | Scr Mat Min Mat Min Mat Fac Robot Analysis Total . | . . . . . . . Derelict Logs Recovered 1 | . . . . 1 . . Drone Launches 3 | . . . 3 . . . Drone Recoveries . | . . . . . . . Exploration | -11 -10 -10 -9 -9 -8 -7 ------------- Run | Scr Mat Min Mat Min Mat Fac Turns Passed 2560 | 6 245 518 252 955 567 17 Spaces Moved 2204 | 2 226 552 172 919 314 19 Core . | . . . . . . . Treads . | . . . . . . . Legs 43 | 2 41 . . . . . Wheels 2161 | . 185 552 172 919 314 19 Hover . | . . . . . . . Flight . | . . . . . . . Fastest Speed 80 | 120 90 90 90 86 80 80 Average Speed 93 | 120 97 90 91 95 94 80 Slowest Speed 120 | 120 120 90 105 100 100 80 Overloaded Moves . | . . . . . . . Propulsion Burnouts . | . . . . . . . Robots Hopped . | . . . . . . . Cave-ins Triggered . | . . . . . . . Exploration Rate (%) 39 | 2 36 78 18 98 40 2 Regions Visited 6 Branch Regions 2 Pre-discovered Areas . | . . . . . . . Known Exits Taken 6 | 1 1 1 1 1 1 . Unknown Exits Taken . | . . . . . . . Scrap Searched . | . . . . . . . Spaces Dug . | . . . . . . . Terrain Destroyed . | . . . . . . . Melee . | . . . . . . . Projectile . | . . . . . . . AOE . | . . . . . . . Terrain Rammed . | . . . . . . . Walls Destroyed . | . . . . . . . Machines Disabled . | . . . . . . . Actions | -11 -10 -10 -9 -9 -8 -7 --------- Run | Scr Mat Min Mat Min Mat Fac Total 2464 | 8 251 562 223 969 431 20 Wait 66 | . 16 3 12 21 14 . Move 2198 | 1 225 551 171 918 313 19 Hop . | . . . . . . . Pick Up 4 | . . . 2 1 1 . Fast Attach 20 | . 5 1 4 2 8 . Attach 8 | 2 . . 2 1 2 1 Detach 14 | 3 3 1 4 2 1 . Swap 11 | . . 1 1 4 5 . Drop 23 | 2 2 . 5 5 9 . Fire 120 | . . 5 22 15 78 . Melee . | . . . . . . . Ram . | . . . . . . . Kick . | . . . . . . . Crush . | . . . . . . . Escape Stasis . | . . . . . . . Rewire . | . . . . . . . Trap . | . . . . . . . Miscellaneous . | . . . . . . . Route ------- -11/Scrapyard -10/Materials (discovered 2 exits: *Min x2) -10/Mines (discovered 2 exits: *Mat x2) -9/Materials -9/Mines (discovered 2 exits: *Mat x2) -8/Materials (discovered 3 exits: *Fac x3) -7/Factory (discovered 1 exit: Sto) History --------- Turn | Location | Event 6 | -11/Scrapyard | Identified exit to Materials 6 | -11/Scrapyard | Discovered exit to Materials (range 1) 7 | -11/Scrapyard | Entered Materials 7 | -10/Materials | Evolved 1 slot: Utility x1 34 | -10/Materials | Identified exit to Mines 252 | -10/Materials | Entered Mines 257 | -10/Mines | Found the Drone Emporium 263 | -10/Mines | Found Prototype Device 263 | -10/Mines | Identified Thief Drone Bay 312 | -10/Mines | Build established: Hacker-Mutant 312 | -10/Mines | Found a hidden stash of uninstalled traps 348 | -10/Mines | Identified exit to Materials 348 | -10/Mines | Discovered exit to Materials (range 5) 436 | -10/Mines | Discovered exit to Materials (range 9) 770 | -10/Mines | Entered Materials 770 | -9/Materials | Evolved 2 slots: Propulsion x1, Utility x1 818 | -9/Materials | Identified exit to Mines 1022 | -9/Materials | Entered Mines 1039 | -9/Mines | Received a Mining Laser from a helpful Derelict 1284 | -9/Mines | Identified exit to Materials 1284 | -9/Mines | Discovered exit to Materials (range 9) 1404 | -9/Mines | Assisted by bots powering up and referring to "LRC-V3" 1518 | -9/Mines | Discovered exit to Materials (range 3) 1623 | -9/Mines | Build established: Scavenger-Mutant 1778 | -9/Mines | Found a damaged Exp. Sensor Array with a note attached 1977 | -9/Mines | Entered Materials 1977 | -8/Materials | Accompanied by 1 ally 1977 | -8/Materials | Evolved 2 slots: Propulsion x1, Utility x1 2386 | -8/Materials | Identified exit to Factory 2544 | -8/Materials | Entered Factory 2544 | -7/Factory | Evolved 2 slots: Utility x1, Weapon x1 2545 | -7/Factory | Identified exit to Storage 2561 | -7/Factory | Self-destructed Last Messages --------------- M008. 02492_ K-01 Serf destroyed. 02493_ K-01 Serf collects debris. 02496_ R-06 Scavenger collects Med. Matter Pod. 02497_ K-01 Serf collects debris. 02497_ Dropped Com. Wheel. 02498_ Acquired Wheel. 02499_ R-06 Scavenger collects Sml. Matter Pod. 02500_ Acquired 10 matter. 02501_ K-01 Serf collects debris. 02503_ R-06 Scavenger collects Lgt. Ion Engine. 02505_ K-01 Serf collects debris. 02506_ W-25 Informer distress signal alerts nearby ally. 02507_ R-06 Scavenger collects Wheel. 02521_ Critical hit (Burn: +37). 02533_ K-01 Serf collects debris. PARAMETERS=UTILITY+1,WEAPON+1 LOCATION=FACTORY GOAL=ESCAPE Loading 1 Storage entrance... Map ----- +----------------------------------------------------+ | ??????????????????????????????? | | ??????????????????????????????? | | ??????????????????????????????? | | ??????????????????????????????? | | ??????????????????????????????? | | ??????????????????????????????? | | ??????????????????????????????? | | ??????????????????????????????? | | ??????????????????????????????? | | ??????????????????????????????? | | ??????????#???????????????????? | | ?????????? ???????????????????? | | ????????? ???????????????????? | | ????????? ???????????????????? | | ?????? ??" #??????????????????? | | ?????" ??" #?????????? ?????? | | ????"" """ #???????? ?????? | | #??? #???????? ?????? | | # ?""" """ #??????? #?????? | | # """ """ ######## #?????? | | # """ """ # #?????? | | # # #?????? | | # "" "" # #?????? | | # ""S"" + #?????? | | # """" # #?????? | | # @ # #######??????? | | ??########## #????????????? | | ?????????# #????????????? | | ?????????# #????????????? | | ?????????# #????????????? | | ?????????# #????????????? | | ?????????# #????????????? | | ???????######+#######?????????? | | ???????# #?????????? | | ???????# #?????????? | | ???????# #?????????? | | ???????# #?????????? | | ???????# #?????????? | | ???????# #?????????? | | ???????# #?????????? | | ???????# #?????????? | | ???????# #?????????? | | ???????# #?????????? | | ???????# #?????????? | | ???????# #?????????? | | ???????##############?????????? | | ??????????????????????????????? | | ??????????????????????????????? | | ??????????????????????????????? | | ??????????????????????????????? | +----------------------------------------------------+ Best States ------------- Heat Dissipation 64 Energy Generation 12 Energy Capacity 265 Matter Stores 300 Matter Capacity 300 Sight Range 16 Terrain Scan Density 10 Armor Coverage 300 Resistance: KI 35 Resistance: TH 35 Resistance: EX 35 Resistance: EM 35 Resistance: I 35 Resistance: S 35 Resistance: P 35 Evasion (%) 50 Targeting Accuracy 6 Core Analysis 6 Offensive Hacking 20 Item Schematics ----------------- Com. Wheel | -10/Mines | Hacked Robot Schematics ------------------ None Fabricated ------------ Nothing Alien Tech Used ----------------- None Achievements -------------- None Challenges ------------ None Game ------ Seed FlyingCorruptionDetector Manual? 0 Play Time 00:23:37 Cumulative 164.2 hours Start 2022.05.24 @ 21:59:18 End 2022.05.24 @ 22:33:17 Sessions 1 Manual Loads 0 Difficulty Explorer Special Mode None Game No. 52 Rogue 0 Adventurer 1 Explorer 51 Win Type - Total 11 Types 5/0/3/3/0/0/0/0/0 Lore% 79 Gallery% 82 Achievement% 67 Wizard Run 0 Options --------- ASCII 0 Keyboard 1 Movement Numpad Keybinds 0 Fullscreen 0 Font 16/Terminus Map View 76x50 Tactical HUD 1 Map Filters BRIGHTNESS(150) Filters NONE Steam 1 RUN: d5f673bf-5b4d-4f61-951d-d0be5d1de47c